bitfinex-derivatives/quotes_BTCF0:USTF0_20260104
["timestamp","ask_amount","ask_price","bid_price","bid_amount"]
[1767492911597,0.00016449,91192.0,91178.0,0.22056727]
[1767492911802,0.010969,91204.0,91191.0,0.00891625]
[1767492912099,0.010969,91202.0,91190.0,0.09749778]
[1767492912602,0.104249,91205.0,91190.0,0.09749778]
[1767492912786,0.10441349,91205.0,91190.0,0.09749778]
[1767492913799,0.010968,91215.0,91192.0,0.10662955]
[1767492913998,0.010968,91211.0,91195.0,0.10662955]
[1767492914197,0.010968,91209.0,91195.0,0.10662955]
[1767492914899,0.010968,91209.0,91191.0,0.00903148]
[1767492915098,0.010968,91209.0,91192.0,0.00903148]
[1767492915294,0.010968,91209.0,91193.0,0.00903148]
[1767492915602,0.010968,91209.0,91192.0,0.09749778]
[1767492916298,0.11447302,91210.0,91193.0,0.01097]
[1767492917206,0.11447302,91210.0,91192.0,0.09749778]
[1767492917207,0.010968,91209.0,91192.0,0.10683064]
[1767492918696,0.010968,91209.0,91187.0,0.00016449]
[1767492918697,0.00016449,91211.0,91198.0,0.09749778]
[1767492918893,0.010968,91215.0,91200.0,0.0095019]
[1767492919097,0.010968,91215.0,91201.0,0.0095019]
[1767492919393,0.010968,91213.0,91201.0,0.0095019]
[1767492920206,0.010968,91213.0,91200.0,0.09749778]
[1767492921214,0.010968,91215.0,91200.0,0.10715244]
[1767492921510,0.010968,91215.0,91202.0,0.00965466]
[1767492923004,0.010968,91215.0,91201.0,0.09749778]
[1767492923210,0.010968,91215.0,91198.0,0.0099116]
[1767492925812,0.010968,91215.0,91201.0,0.10740444]
[1767492926209,0.010968,91215.0,91201.0,0.09749778]
[1767492927301,0.00016449,91216.0,91201.0,0.09749778]
[1767492927302,0.00016449,91216.0,91201.0,0.10734889]
[1767492927506,0.00016449,91216.0,91206.0,0.00985111]
[1767492928115,0.00016449,91216.0,91205.0,0.09749778]
[1767492929712,0.00016449,91216.0,91205.0,0.10846678]
[1767492929910,0.09328,91221.0,91206.0,0.0098491]
[1767492930114,0.09328,91221.0,91207.0,0.00968302]
[1767492930310,0.09328,91221.0,91207.0,0.02065102]
[1767492930709,0.09328,91221.0,91209.0,0.010968]
[1767492930915,0.09328,91221.0,91209.0,0.02065102]
[1767492932416,0.09328,91221.0,91209.0,0.00968302]
[1767492932619,0.11447302,91220.0,91209.0,0.00968302]
[1767492932919,0.11447302,91220.0,91208.0,0.0949537]
[1767492933121,0.11447302,91220.0,91206.0,0.00016449]
[1767492933421,0.09328,91221.0,91206.0,0.00016449]
[1767492933630,0.11447302,91220.0,91206.0,0.00016449]
[1767492934220,0.12366118,91220.0,91206.0,0.00016449]
[1767492934621,0.13462818,91220.0,91206.0,0.00016449]
[1767492936634,0.02015516,91220.0,91206.0,0.00016449]
[1767492936816,0.00918816,91219.0,91206.0,0.00016449]
[1767492937218,0.00918816,91219.0,91206.0,0.01113349]
[1767492940226,0.00918816,91219.0,91206.0,0.00016449]
[1767492940428,0.010967,91218.0,91206.0,0.00016449]
[1767492940825,0.010967,91216.0,91206.0,0.00016449]
[1767492942932,0.00918816,91219.0,91206.0,0.00016449]
[1767492942933,0.02015516,91219.0,91206.0,0.00016449]
[1767492943128,0.010967,91219.0,91206.0,0.00016449]
[1767492943335,0.09328,91221.0,91206.0,0.00016449]
[1767492944535,0.010967,91220.0,91206.0,0.00016449]
[1767492946836,0.010967,91218.0,91206.0,0.00016449]
[1767492947232,0.00918816,91220.0,91206.0,0.00016449]
[1767492947628,0.010967,91219.0,91206.0,0.00016449]
[1767492947833,0.02015516,91219.0,91206.0,0.00016449]
[1767492948733,0.09328,91221.0,91206.0,0.00016449]
[1767492949035,0.09328,91221.0,91207.0,0.11072725]
[1767492949235,0.09328,91221.0,91207.0,0.09975925]
[1767492949638,0.09328,91221.0,91210.0,0.010968]
[1767492950936,0.00010928,91224.0,91212.0,0.010968]
[1767492951648,0.00010928,91224.0,91213.0,0.00930313]
[1767492955742,0.00010928,91224.0,91214.0,0.010968]
[1767492957740,0.00010928,91224.0,91214.0,0.11072725]
[1767492957943,0.00010928,91224.0,91214.0,0.09975925]
[1767492960441,0.00935703,91244.0,91224.0,0.09938512]
[1767492960637,0.00935703,91241.0,91221.0,0.00914444]
[1767492960945,0.00935703,91239.0,91221.0,0.00914444]
[1767492961245,0.02845456,91238.0,91221.0,0.00914444]
[1767492961453,0.00935703,91241.0,91221.0,0.09938512]
[1767492961648,0.03780833,91240.0,91221.0,0.09938512]
[1767492961848,0.010965,91237.0,91221.0,0.09938512]
[1767492964055,0.010965,91237.0,91221.0,0.09024068]
[1767492965157,0.010965,91235.0,91220.0,0.00016449]
[1767492965655,0.00935703,91237.0,91220.0,0.00016449]
[1767492966055,0.10144778,91239.0,91220.0,0.00016449]
[1767492966257,0.010965,91237.0,91220.0,0.00016449]
[1767492968358,0.010965,91235.0,91220.0,0.00016449]
[1767492968554,0.00935703,91236.0,91220.0,0.00016449]
[1767492969758,0.10144778,91237.0,91220.0,0.00016449]
[1767492969954,0.010965,91237.0,91220.0,0.00016449]
[1767492970558,0.02032203,91237.0,91220.0,0.00016449]
[1767492972560,0.09983981,91236.0,91220.0,0.00016449]
[1767492972862,0.09983981,91233.0,91220.0,0.00016449]
[1767492973262,0.00935703,91232.0,91220.0,0.00016449]
[1767492973461,0.09983981,91232.0,91220.0,0.00016449]
[1767492974266,0.00935703,91231.0,91220.0,0.00016449]
[1767492977156,0.09983981,91231.0,91220.0,0.00016449]
[1767492977360,0.00935703,91230.0,91220.0,0.00016449]
[1767492977562,0.00935703,91229.0,91220.0,0.00016449]
[1767492978866,0.00935703,91229.0,91215.0,0.09324]
[1767492979966,0.00935703,91229.0,91216.0,0.010967]
[1767492980362,0.00935703,91229.0,91214.0,0.09324]
[1767492980558,0.00935703,91229.0,91215.0,0.010968]
[1767492980763,0.00935703,91229.0,91217.0,0.010967]
[1767492980964,0.09048278,91230.0,91217.0,0.010967]
[1767492981165,0.00016449,91231.0,91217.0,0.010967]
[1767492981367,0.00016449,91231.0,91219.0,0.010967]
[1767492982272,0.010965,91239.0,91221.0,0.010967]
[1767492982455,0.010965,91237.0,91220.0,0.00882963]
[1767492983167,0.00935703,91238.0,91219.0,0.09024068]
[1767492983364,0.00935703,91231.0,91214.0,0.104208]
[1767492984169,0.00935703,91231.0,91217.0,0.010967]
[1767492985269,0.09048278,91232.0,91219.0,0.010967]
[1767492985457,0.00935703,91235.0,91222.0,0.010967]
[1767492985662,0.09048278,91237.0,91222.0,0.010967]
[1767492986267,0.09048278,91237.0,91224.0,0.010966]
[1767492987274,0.09048278,91237.0,91221.0,0.010967]
[1767492989671,0.00935703,91234.0,91218.0,0.010967]
[1767492989874,0.00996465,91233.0,91218.0,0.010967]
[1767492990371,0.00996465,91230.0,91215.0,0.010967]
[1767492993574,0.00996465,91230.0,91218.0,0.010967]
[1767492994075,0.0934353,91231.0,91218.0,0.010967]
[1767492995873,0.00907641,91234.0,91218.0,0.010967]
[1767492996073,0.00907641,91234.0,91220.0,0.010967]
[1767492998876,0.00907641,91233.0,91220.0,0.010967]
[1767493000574,0.02004141,91233.0,91217.0,0.010967]
[1767493000779,0.00907641,91230.0,91217.0,0.010967]
[1767493001280,0.00907641,91233.0,91217.0,0.010967]
[1767493001674,0.00907641,91233.0,91219.0,0.010967]
[1767493002272,0.00907641,91232.0,91219.0,0.010967]
[1767493006090,0.09317043,91233.0,91219.0,0.010967]
[1767493007586,0.00907641,91235.0,91221.0,0.010967]
[1767493008288,0.010964,91248.0,91229.0,0.010966]
[1767493008481,0.02814809,91247.0,91231.0,0.103822]
[1767493008682,0.09317043,91256.0,91237.0,0.010965]
[1767493008683,0.09324,91248.0,91237.0,0.010965]
[1767493008878,0.10231641,91251.0,91232.0,0.00931208]
[1767493009089,0.10231641,91251.0,91231.0,0.09450992]
[1767493009090,0.00907641,91249.0,91236.0,0.010965]
[1767493009483,0.00907641,91249.0,91233.0,0.010965]
[1767493011290,0.00907641,91249.0,91231.0,0.09450992]
[1767493011291,0.00907641,91249.0,91235.0,0.010965]
[1767493012801,0.09324,91251.0,91237.0,0.010965]
[1767493013303,0.10231641,91251.0,91234.0,0.010965]
[1767493016004,0.00907641,91250.0,91234.0,0.010965]
[1767493016307,0.12341201,91250.0,91234.0,0.010965]
[1767493016507,0.02809771,91249.0,91234.0,0.010965]
[1767493016802,0.02809771,91248.0,91231.0,0.10401381]
[1767493017001,0.00907641,91249.0,91235.0,0.010965]
[1767493017200,0.02809573,91248.0,91235.0,0.010965]
[1767493017400,0.00907641,91249.0,91235.0,0.010965]
[1767493017707,0.02809573,91248.0,91235.0,0.010965]
[1767493017894,0.00907641,91249.0,91235.0,0.010965]
[1767493018208,0.02809573,91248.0,91231.0,0.10401381]
[1767493018511,0.00907641,91249.0,91231.0,0.10401381]
[1767493018807,0.03905808,91248.0,91231.0,0.10401381]
[1767493018997,0.010964,91248.0,91231.0,0.10401381]
[1767493019199,0.010964,91248.0,91233.0,0.00957053]
[1767493019907,0.09324,91251.0,91233.0,0.00957053]
[1767493019908,0.010964,91246.0,91233.0,0.00957053]
[1767493020304,0.010964,91246.0,91230.0,0.0001644]
[1767493020605,0.02051586,91229.0,91217.0,0.0932]
[1767493020795,0.010966,91227.0,91217.0,0.0932]
[1767493020995,0.010964,91242.0,91217.0,0.0932]
[1767493020996,0.010964,91242.0,91220.0,0.00957959]
[1767493021201,0.1143356,91240.0,91221.0,0.00957959]
[1767493021409,0.010965,91233.0,91225.0,2.1e-07]
[1767493021910,0.010965,91233.0,91220.0,0.1145]
[1767493022299,0.00954986,91232.0,91220.0,0.0001644]
[1767493022802,0.010966,91231.0,91220.0,0.0001644]
[1767493023002,0.00954986,91232.0,91220.0,0.0001644]
[1767493023408,0.02051586,91232.0,91220.0,0.0001644]
[1767493024305,0.00954986,91232.0,91220.0,0.0001644]
[1767493026205,0.10674948,91233.0,91220.0,0.0001644]
[1767493026411,0.010965,91233.0,91220.0,0.1145]
[1767493026610,0.010966,91231.0,91220.0,0.1145]
[1767493027009,0.09578448,91236.0,91220.0,0.0001644]
[1767493027212,0.010965,91235.0,91220.0,0.1145]
[1767493027414,0.010965,91233.0,91220.0,0.0001644]
[1767493030917,0.10533434,91234.0,91220.0,0.0001644]
[1767493031126,0.010965,91233.0,91220.0,0.0001644]
[1767493031318,0.09578448,91234.0,91220.0,0.0001644]
[1767493031512,0.00016409,91238.0,91220.0,0.1145]
[1767493031712,0.00971395,91238.0,91220.0,0.1145]
[1767493031917,0.10549843,91238.0,91220.0,0.1145]
[1767493032120,0.00954986,91237.0,91220.0,0.1145]
[1767493032322,0.00954986,91234.0,91220.0,0.0001644]
[1767493032521,0.10533434,91234.0,91220.0,0.0001644]
[1767493032816,0.00954986,91233.0,91220.0,0.0001644]
[1767493033012,0.10533434,91232.0,91220.0,0.0001644]
[1767493033514,0.09578448,91217.0,91213.0,0.0932]
[1767493033820,0.09578448,91217.0,91195.0,0.2314776]
[1767493033821,0.09578448,91217.0,91211.0,0.25770449]
[1767493034215,0.09578448,91217.0,91211.0,0.0932]
[1767493034412,0.00954986,91221.0,91202.0,0.09877381]
[1767493034617,0.00954986,91221.0,91205.0,0.0001644]
[1767493035010,0.00954986,91221.0,91206.0,0.16419073]
[1767493035412,0.0001644,91223.0,91205.0,0.0001644]
[1767493035413,0.00954986,91214.0,91205.0,0.0001644]
[1767493035711,0.10533434,91206.0,91194.0,0.09877381]
[1767493035913,0.01097,91195.0,91187.0,9.8e-07]
[1767493036118,0.01097,91195.0,91186.0,0.09324]
[1767493036119,0.01097,91197.0,91186.0,0.09324]
[1767493036513,0.10533434,91198.0,91180.0,0.1143356]
[1767493036823,0.10549883,91198.0,91181.0,0.16508139]
[1767493037323,0.10549883,91198.0,91182.0,0.09324]
[1767493038725,0.00954986,91197.0,91182.0,0.09324]
[1767493039324,0.00954986,91196.0,91182.0,0.09324]
[1767493042321,0.00954986,91186.0,91161.0,0.09305562]
[1767493042635,0.09578448,91183.0,91170.0,0.25687762]
[1767493046430,0.010971,91186.0,91167.0,0.00016449]
[1767493046431,0.1143356,91180.0,91167.0,0.00016449]
[1767493046626,0.21966994,91180.0,91168.0,0.09324]
[1767493046837,0.09578448,91179.0,91168.0,0.09324]
[1767493047329,0.00954986,91182.0,91168.0,0.09324]
[1767493047725,0.09578448,91179.0,91167.0,0.00016449]
[1767493047931,0.10533434,91173.0,91163.0,0.09324]
[1767493048319,0.09578448,91173.0,91163.0,0.09324]
[1767493050326,0.00954986,91176.0,91163.0,0.09324]
[1767493050528,0.00954394,91177.0,91163.0,0.09324]
[1767493051130,0.0967079,91184.0,91167.0,0.1143356]
[1767493051331,0.0967079,91184.0,91170.0,0.1143356]
[1767493052322,0.00016449,91186.0,91166.0,0.09282793]
[1767493052528,0.00016449,91186.0,91171.0,0.010973]
[1767493052827,0.00016449,91186.0,91172.0,7.686e-05]
[1767493053128,0.09324,91190.0,91173.0,7.686e-05]
[1767493054322,0.09324,91190.0,91175.0,0.010972]
[1767493056029,0.09324,91190.0,91173.0,7.686e-05]
[1767493056333,0.09324,91190.0,91173.0,0.09282793]
[1767493057427,0.00016449,91191.0,91181.0,0.010972]
[1767493057636,0.09328,91197.0,91181.0,0.010972]
[1767493058029,0.19419073,91197.0,91181.0,0.010972]
[1767493058334,0.00934288,91196.0,91178.0,0.10379993]
[1767493058730,0.00950737,91196.0,91178.0,0.01113649]
[1767493060034,0.11204522,91196.0,91178.0,0.01113649]
[1767493060233,0.00934288,91195.0,91178.0,0.01113649]
[1767493064031,0.01097,91194.0,91178.0,0.01113649]
[1767493065938,0.02031288,91194.0,91178.0,0.01113649]
[1767493066539,0.02927232,91193.0,91178.0,0.01113649]
[1767493066744,0.02927232,91192.0,91178.0,0.01113649]
[1767493066940,0.02927232,91191.0,91178.0,0.01113649]
[1767493067238,0.02927232,91190.0,91178.0,0.01113649]
[1767493067440,0.02927232,91189.0,91178.0,0.01113649]
[1767493067637,0.02031288,91194.0,91178.0,0.01113649]
[1767493067841,0.0292767,91193.0,91178.0,0.01113649]
[1767493068144,0.0292767,91192.0,91178.0,0.01113649]
[1767493068341,0.0292767,91191.0,91178.0,0.01113649]
[1767493068531,0.0292767,91190.0,91178.0,0.01113649]
[1767493068731,0.0292767,91189.0,91178.0,0.01113649]
[1767493068931,0.02031288,91194.0,91178.0,0.01113649]
[1767493069140,0.02928189,91193.0,91178.0,0.01113649]
[1767493069333,0.02928189,91192.0,91178.0,0.01113649]
[1767493069634,0.02928189,91191.0,91178.0,0.01113649]
[1767493069834,0.02928189,91190.0,91178.0,0.01113649]
[1767493070042,0.02928189,91189.0,91178.0,0.01113649]
[1767493070242,0.02928189,91188.0,91178.0,0.01113649]
[1767493070444,0.11188073,91194.0,91178.0,0.01113649]
[1767493070636,0.02929367,91193.0,91178.0,0.01113649]
[1767493070827,0.11188073,91194.0,91178.0,0.01113649]
[1767493070828,0.02929367,91192.0,91178.0,0.01113649]
[1767493071027,0.03863655,91191.0,91178.0,0.01113649]
[1767493071334,0.02929367,91190.0,91178.0,0.01113649]
[1767493071640,0.00934288,91191.0,91178.0,0.01113649]
[1767493071641,0.02929367,91189.0,91178.0,0.01113649]
[1767493071938,0.02929367,91188.0,91178.0,0.01113649]
[1767493072139,0.02929367,91187.0,91178.0,0.01113649]
[1767493072340,0.02931557,91186.0,91178.0,0.01113649]
[1767493072539,0.10091073,91190.0,91178.0,0.01113649]
[1767493072742,0.02931557,91189.0,91178.0,0.01113649]
[1767493072944,0.02931557,91188.0,91178.0,0.01113649]
[1767493073133,0.02931557,91187.0,91178.0,0.01113649]
[1767493073430,0.02931557,91186.0,91178.0,0.01113649]
[1767493073626,0.10091073,91190.0,91178.0,0.01113649]
[1767493073839,0.02931558,91189.0,91180.0,0.010972]
[1767493074040,0.02931558,91188.0,91180.0,0.010972]
[1767493074243,0.02931558,91187.0,91180.0,0.010972]
[1767493074443,0.10091073,91190.0,91180.0,0.010972]
[1767493074640,0.02931522,91189.0,91180.0,0.010972]
[1767493074835,0.02931522,91188.0,91180.0,0.010972]
[1767493075036,0.02931522,91187.0,91180.0,0.010972]
[1767493075241,0.09156785,91190.0,91180.0,0.010972]
[1767493075448,0.029315,91189.0,91180.0,0.010972]
[1767493075644,0.029315,91188.0,91180.0,0.010972]
[1767493075948,0.09156785,91190.0,91180.0,0.010972]
[1767493076147,0.02931516,91189.0,91180.0,0.010972]
[1767493076348,0.02931516,91188.0,91180.0,0.010972]
[1767493076547,0.09156785,91190.0,91180.0,0.010972]
[1767493079451,0.00934288,91189.0,91178.0,0.00016449]
[1767493079647,0.00934288,91189.0,91179.0,0.010972]
[1767493080748,0.00016449,91196.0,91178.0,0.09707575]
[1767493080945,0.10251906,91204.0,91181.0,0.09691126]
[1767493082055,0.00235724,91199.0,91181.0,0.09691126]
[1767493082553,0.00235724,91199.0,91190.0,0.01097]
[1767493087549,0.00235724,91199.0,91188.0,0.010971]
[1767493087754,0.0115963,91199.0,91188.0,0.010971]
[1767493094667,0.00235724,91199.0,91182.0,0.09328]
[1767493096370,0.00235724,91199.0,91189.0,0.010971]
[1767493097473,0.00235724,91199.0,91182.0,0.09328]
[1767493097972,0.00235724,91199.0,91190.0,0.01097]
[1767493099870,0.00235724,91199.0,91189.0,0.010971]
[1767493100272,0.00235724,91199.0,91182.0,0.09328]
[1767493100471,0.00235724,91199.0,91189.0,0.010971]
[1767493100672,0.00235724,91199.0,91182.0,0.09390024]
[1767493102577,0.00235724,91199.0,91190.0,0.01097]
[1767493103882,0.00923906,91196.0,91182.0,0.09328]
[1767493104172,0.00235724,91199.0,91182.0,0.09328]
[1767493104173,0.00923906,91191.0,91183.0,0.010971]
[1767493104371,0.09831105,91192.0,91183.0,0.010971]
[1767493104571,0.00923906,91194.0,91183.0,0.010971]
[1767493104772,0.10755011,91197.0,91183.0,0.010971]
[1767493105873,0.00923906,91194.0,91183.0,0.010971]
[1767493106479,0.09831105,91195.0,91183.0,0.010971]
[1767493107574,0.10755011,91192.0,91183.0,0.010971]
[1767493107778,0.00923906,91191.0,91183.0,0.010971]
[1767493108083,0.00923906,91191.0,91182.0,0.09328]
[1767493108471,0.09831105,91192.0,91182.0,0.104251]
[1767493110775,0.09831105,91192.0,91185.0,0.010971]
[1767493111480,0.00923906,91194.0,91185.0,0.010971]
[1767493112981,0.09852511,91197.0,91185.0,0.010971]
[1767493113178,0.00235724,91199.0,91182.0,0.0936303]
[1767493113374,0.08711319,91202.0,91184.0,0.0003503]
[1767493113574,0.09328,91205.0,91194.0,0.01097]
[1767493115783,0.19402089,91205.0,91194.0,0.01097]
[1767493116679,0.00973416,91204.0,91191.0,0.01097]
[1767493117381,0.00973416,91203.0,91191.0,0.01097]
[1767493120583,0.09100673,91204.0,91191.0,0.01097]
[1767493120783,0.00973416,91206.0,91191.0,0.01097]
[1767493121180,0.00973416,91205.0,91191.0,0.01097]
[1767493121876,0.09100673,91206.0,91191.0,0.01097]
[1767493122076,0.09328,91207.0,91191.0,0.01097]
[1767493122277,0.10301416,91207.0,91191.0,0.01097]
[1767493122771,0.19402089,91207.0,91191.0,0.01097]
[1767493123280,0.00973416,91206.0,91191.0,0.01097]
[1767493126184,0.10074089,91206.0,91191.0,0.01097]
[1767493126788,0.00973416,91201.0,91182.0,0.0938802]
[1767493126986,0.00973416,91201.0,91190.0,0.010971]
[1767493128082,0.00973416,91201.0,91186.0,0.010971]
[1767493129188,0.00973416,91201.0,91182.0,0.0938802]
[1767493129889,0.00973416,91196.0,91182.0,0.09328]
[1767493130080,0.00973416,91194.0,91182.0,0.09328]
[1767493130287,0.00973416,91194.0,91178.0,0.00016449]
[1767493130288,0.00973416,91193.0,91179.0,0.010972]
[1767493130484,0.10074089,91192.0,91180.0,0.104212]
[1767493131084,0.10074089,91191.0,91180.0,0.104212]
[1767493131489,0.09100673,91191.0,91182.0,0.010971]
[1767493132888,0.00973416,91196.0,91184.0,0.010971]
[1767493133093,0.00973416,91196.0,91178.0,0.00016449]
[1767493133094,0.10074089,91199.0,91181.0,0.010972]
[1767493133396,0.10074089,91197.0,91183.0,0.010971]
[1767493137196,0.10074089,91197.0,91185.0,0.010971]
[1767493137697,0.00973416,91202.0,91186.0,0.010971]
[1767493137896,0.00973416,91199.0,91186.0,0.010971]
[1767493139295,0.00973416,91199.0,91182.0,0.010971]
[1767493139487,0.00973416,91197.0,91181.0,0.010972]
[1767493139691,0.00973416,91196.0,91181.0,0.010972]
[1767493139897,0.00958784,91193.0,91181.0,0.010972]
[1767493140195,0.00958784,91193.0,91183.0,0.010971]
[1767493141097,0.1002117,91192.0,91182.0,0.010971]
[1767493141603,0.09062386,91192.0,91182.0,0.010971]
[1767493142091,0.09062386,91199.0,91180.0,0.2076452]
[1767493142298,0.1002117,91206.0,91181.0,0.0008008]
[1767493142593,0.00958784,91204.0,91184.0,0.0008008]
[1767493142985,0.00958784,91202.0,91183.0,0.09361341]
[1767493143384,0.00958784,91202.0,91185.0,0.010971]
[1767493143687,0.09062386,91203.0,91184.0,0.00079679]
[1767493143889,0.09062386,91203.0,91193.0,0.01097]
[1767493146000,0.09062386,91203.0,91188.0,0.010971]
[1767493146199,0.00958784,91201.0,91185.0,0.010971]
[1767493146498,0.00958784,91200.0,91185.0,0.010971]
[1767493146898,0.1002117,91200.0,91182.0,0.010971]
[1767493147101,0.00958784,91199.0,91182.0,0.010971]
[1767493148406,0.00958784,91198.0,91182.0,0.010971]
[1767493148593,0.09062386,91196.0,91182.0,0.010971]
[1767493148786,0.00958784,91194.0,91182.0,0.010971]
[1767493150701,0.00958784,91193.0,91180.0,0.09324]
[1767493151001,0.00958784,91193.0,91181.0,0.010972]
[1767493151397,0.00958784,91192.0,91181.0,0.010972]
[1767493152901,0.00958784,91192.0,91180.0,0.09324]
[1767493154502,0.20502906,91190.0,91178.0,0.00016449]
[1767493154710,0.1002117,91189.0,91178.0,0.00016449]
[1767493154896,0.00958784,91188.0,91178.0,0.00016449]
[1767493155206,0.00958784,91187.0,91178.0,0.00016449]
[1767493156804,0.1002117,91187.0,91178.0,0.00016449]
[1767493158501,0.1002117,91184.0,91175.0,0.09324]
[1767493158704,0.00958784,91183.0,91175.0,0.09324]
[1767493159207,0.09062386,91184.0,91175.0,0.09324]
[1767493159512,0.09062386,91184.0,91175.0,0.104212]
[1767493160910,0.09062386,91184.0,91175.0,0.09324]
[1767493161206,0.00016449,91189.0,91175.0,0.09324]
[1767493161412,0.00016449,91189.0,91176.0,0.010972]
[1767493163805,0.00016449,91189.0,91175.0,0.09324]
[1767493164502,0.00016449,91189.0,91176.0,0.010972]
[1767493169817,0.00016449,91189.0,91177.0,0.0016442]
[1767493170516,0.00016449,91189.0,91178.0,0.010972]
[1767493170712,0.00016449,91189.0,91180.0,0.010972]
[1767493170909,0.00016449,91189.0,91180.0,0.0126162]
[1767493171109,0.00016449,91189.0,91181.0,0.0016442]
[1767493171617,0.00016449,91189.0,91180.0,0.010972]
[1767493173721,0.00016449,91189.0,91179.0,0.09340443]
[1767493174205,0.00016449,91189.0,91178.0,0.0016442]
[1767493174723,0.00016449,91189.0,91177.0,0.010972]
[1767493176926,0.00016449,91189.0,91177.0,0.01253773]
[1767493179622,0.00979361,91205.0,91183.0,0.00157025]
[1767493179826,0.13164321,91204.0,91183.0,0.00157025]
[1767493180026,0.0286096,91203.0,91183.0,0.00157025]
[1767493180330,0.01097,91195.0,91183.0,0.00157025]
[1767493180513,0.01097,91195.0,91180.0,0.00156314]
[1767493181922,0.01097,91195.0,91181.0,0.00163748]
[1767493182125,0.01097,91195.0,91182.0,0.00163748]
[1767493183229,0.00979361,91201.0,91185.0,0.010971]
[1767493183535,0.11400261,91204.0,91185.0,0.010971]
[1767493185129,0.010969,91208.0,91190.0,0.00161648]
[1767493185329,0.02860989,91207.0,91194.0,0.00161648]
[1767493185532,0.19453366,91211.0,91195.0,0.01097]
[1767493185735,0.0286092,91210.0,91195.0,0.01097]
[1767493186033,0.0286092,91209.0,91195.0,0.01097]
[1767493186232,0.0286092,91208.0,91195.0,0.01097]
[1767493186534,0.0286092,91207.0,91195.0,0.01097]
[1767493186724,0.19335927,91211.0,91195.0,0.01097]
[1767493186924,0.02860603,91210.0,91195.0,0.01097]
[1767493187124,0.02860603,91209.0,91195.0,0.01097]
[1767493187325,0.02860603,91208.0,91195.0,0.01097]
[1767493187624,0.02860603,91207.0,91195.0,0.01097]
[1767493187824,0.19335927,91211.0,91195.0,0.01097]
[1767493188026,0.0286039,91210.0,91195.0,0.01097]
[1767493188226,0.0286039,91209.0,91195.0,0.01097]
[1767493188426,0.0286039,91208.0,91195.0,0.01097]
[1767493188627,0.0286039,91207.0,91195.0,0.01097]
[1767493188929,0.19335927,91211.0,91195.0,0.01097]
[1767493189124,0.02860215,91210.0,91197.0,0.00163229]
[1767493189330,0.09324,91216.0,91200.0,0.010969]
[1767493189529,0.10303361,91216.0,91200.0,0.010969]
[1767493190726,0.00979361,91216.0,91200.0,0.010969]
[1767493190933,0.10303361,91216.0,91200.0,0.010969]
[1767493194738,0.10303361,91216.0,91203.0,0.010969]
[1767493195040,0.10303361,91216.0,91207.0,0.010968]
[1767493196138,0.10303361,91216.0,91204.0,0.010969]
[1767493196333,0.09032566,91221.0,91208.0,0.010968]
[1767493196728,0.02855517,91220.0,91208.0,0.010968]
[1767493196938,0.09032566,91221.0,91208.0,0.010968]
[1767493197137,0.00979361,91224.0,91208.0,0.010968]
[1767493197338,0.0285177,91223.0,91208.0,0.010968]
[1767493197537,0.0285177,91223.0,91203.0,0.0008555]
[1767493197538,0.0285177,91222.0,91210.0,0.010968]
[1767493197732,0.00979361,91224.0,91210.0,0.010968]
[1767493197937,0.02851769,91223.0,91210.0,0.010968]
[1767493198139,0.02851769,91222.0,91210.0,0.010968]
[1767493198438,0.09032566,91226.0,91210.0,0.010968]
[1767493198638,0.02851329,91225.0,91210.0,0.010968]
[1767493198849,0.02851329,91224.0,91210.0,0.010968]
[1767493199139,0.02851329,91223.0,91210.0,0.010968]
[1767493199341,0.10011927,91226.0,91210.0,0.010968]
[1767493199541,0.0285095,91225.0,91210.0,0.010968]
[1767493199740,0.0285095,91224.0,91210.0,0.010968]
[1767493199937,0.0285095,91223.0,91212.0,0.010968]
[1767493200132,0.10011927,91226.0,91207.0,0.00016449]
[1767493200133,0.09032566,91226.0,91215.0,0.010967]
[1767493200336,0.09219472,91237.0,91225.0,0.010966]
[1767493200639,0.09219472,91237.0,91228.0,0.010966]
[1767493200838,0.09324,91240.0,91228.0,0.010966]
[1767493201233,0.09324,91240.0,91224.0,0.010966]
[1767493201638,0.09324,91240.0,91226.0,0.010966]
[1767493202936,0.09324,91240.0,91228.0,0.010966]
[1767493203542,0.09219472,91243.0,91230.0,0.010966]
[1767493203935,0.09219472,91243.0,91232.0,0.010965]
[1767493204248,0.010963,91251.0,91225.0,0.00114903]
[1767493204249,0.00909399,91252.0,91233.0,0.09401506]
[1767493204544,0.00219158,91259.0,91246.0,0.010964]
[1767493204931,0.00219158,91259.0,91246.0,0.01217253]
[1767493205142,5.8e-07,91259.0,91246.0,0.00120853]
[1767493205337,5.8e-07,91259.0,91243.0,0.0001644]
[1767493205945,0.00909399,91254.0,91244.0,0.09324]
[1767493206339,0.09219472,91255.0,91244.0,0.09324]
[1767493206839,0.00909399,91254.0,91244.0,0.09324]
[1767493207939,0.00909399,91258.0,91245.0,0.010964]
[1767493208144,5.8e-07,91259.0,91245.0,0.010964]
[1767493208848,5.8e-07,91259.0,91244.0,0.09324]
[1767493209641,0.00909457,91259.0,91243.0,0.0001644]
[1767493209847,0.00909457,91259.0,91244.0,0.09324]
[1767493210539,0.00909399,91258.0,91244.0,0.09324]
[1767493212938,5.8e-07,91259.0,91246.0,0.00075591]
[1767493213547,5.8e-07,91259.0,91244.0,0.104204]
[1767493214745,0.00909399,91257.0,91244.0,0.010964]
[1767493214943,0.00909399,91255.0,91244.0,0.0932]
[1767493215144,0.00909399,91254.0,91244.0,0.0932]
[1767493216051,0.00909399,91254.0,91243.0,0.0001644]
[1767493216250,0.00909399,91252.0,91243.0,0.0001644]
[1767493216647,0.00909399,91250.0,91237.0,0.010965]
[1767493216951,0.00909399,91250.0,91239.0,0.010965]
[1767493218046,0.10128871,91250.0,91235.0,0.0111294]
[1767493218254,0.10128871,91250.0,91237.0,0.010965]
[1767493218545,0.10128871,91250.0,91235.0,0.0933644]
[1767493218750,0.09219472,91250.0,91239.0,0.010965]
[1767493222254,0.09219472,91249.0,91239.0,0.010965]
[1767493223349,0.09219472,91249.0,91235.0,0.0933644]
[1767493223554,0.09219472,91249.0,91238.0,0.010965]
[1767493224054,0.10128871,91249.0,91238.0,0.010965]
[1767493224955,0.10128871,91249.0,91240.0,0.010964]
[1767493225154,0.00016409,91254.0,91244.0,0.010964]
[1767493225550,0.1014528,91254.0,91244.0,0.010964]
[1767493227655,0.00016409,91254.0,91246.0,0.010964]
[1767493231954,0.00016409,91254.0,91240.0,0.00105658]
[1767493231955,9e-08,91254.0,91250.0,0.010963]
[1767493232459,9e-08,91254.0,91252.0,0.10958444]
[1767493232664,0.00963483,91270.0,91255.0,0.010963]